{"text_format":"1","workbook":"xlsx","n_sheets":3,"sheets":["Instruccions","Reformulació Pressupost Ba","Resum Pressupost"],"not_rendered":{"charts":0,"images":4,"macros":1,"external_links":0,"defined_names":8,"comments":2,"pivot_tables":0},"unopened":[],"bounds":{"document_bytes":16777216,"sheet_cells":100000,"rows_first":2000,"rows_last":500,"rows_between":2000,"halvings":0,"cell_chars":16384,"cell_head_chars":4096},"cells_cut":0,"cells_raw":0,"read":"whole","date_system":"1900"}

{"sheet":"Instruccions","index":0,"n_rows":15,"n_cols":10,"rows_kept":15,"cut":false,"hidden":false,"merged":[[1,9,1,11],[4,2,4,17],[2,2,3,17],[14,1,15,14]]}
[]
[null,null,null,null,null,null,null,null,null,"Doc_basic3_pressup_reformulat_Ba INSTRUCCIONS"]
[null,null,"SUBVENCIONS DE L’AJUNTAMENT DE BARCELONA PER L’ENFORTIMENT DE L’ECONOMIA SOCIAL I SOLIDÀRIA I PER LA INTERCOOPERACIÓ EN L’ESTRATÈGIA #ESSBCN2030 - ENFORTIM L’ESS 2024"]
[]
[null,null,"Aspectes rellevants relacionats amb la reformulació"]
[]
[]
[]
[]
[null,"1. Emplenar la pestanya  \"Reformulació Pressupost\" amb les dades econòmiques del projecte:"]
[null,"1.1  Emplenar els quadres DADES BÀSIQUES-PREVISIÓ DE DESPESES DEL PROJECTE SUBVENCIONABLE INICIAL, amb les dades econòmiques de la proposta inicial amb subvenció atorgada."]
[null,"1.2  Emplenar els quadres DADES BÀSIQUES-PREVISIÓ DE DESPESES DEL PROJECTE REFORMULAT, amb les dades econòmiques de la proposta de reformulació."]
[null,"2. Revisar i emplenar la pestanya  \"Resum Pressupost\" amb les dades econòmiques del projecte:"]
[null,"3. Imprimir els fulls de les 2 pestanyes (Reformulació pressupost i Resum Pressupost). En format pdf."]
[null,"4. Si la sol·licitud es va presentar per via telemàtica, cal que registreu la documentació, telemàticament, com a tràmit específic, dins la convocatòria específica com annexió de documents addicionals i feu servir el número de tràmit que el sistema de registre us va donar en el moment de la presentació de la sol·licitud de la subvenció."]

{"sheet":"Reformulació Pressupost Ba","index":1,"n_rows":116,"n_cols":13,"rows_kept":116,"cut":false,"hidden":false,"merged":[[3,0,4,12],[1,1,1,12],[17,10,17,12],[17,0,17,3],[5,2,5,5],[17,5,17,8],[9,5,9,6],[100,0,100,12],[101,0,101,12],[102,0,102,12],[103,0,103,12],[104,0,104,12],[106,0,106,12],[105,0,105,12],[107,0,107,12],[108,0,108,12],[110,0,110,12],[115,0,115,12],[111,0,111,12],[112,0,112,12],[109,0,109,12],[113,0,113,12],[114,0,114,12]]}
[]
[null,"Reformulació pressupost Modalitat Ba"]
[]
["Programa de subvencions de l'Ajuntament de Barcelona per l'enfortiment de l'Economia Social i Solidària i per la intercooperació en l'Estratègia #ESSBCN2030 - ENFORTIM L’ESS 2024"]
[]
[]
["DADES BÀSIQUES"]
["Nom de la persona jurídica",null,{"$f":"+IF(H8>Dadesbasiques[[#This Row],[Columna1]],\"ALERTA: La quantia de la subvenció atorgada no pot superar el 80% de la despesa total del projecte a subvencionar\", \" \")","v":" "},null,null,"  "]
["NIF de la persona jurídica",null,{"$f":"+IF(H9>Dadesbasiques[[#This Row],[Columna1]],\"ALERTA: La quantia de la subvenció atorgada no pot superar el 80% de la despesa total del projecte a subvencionar\", \" \")","v":" "}]
["Nom del projecte subvencionable",null,{"$f":"+IF(G10>Dadesbasiques[[#This Row],[Columna1]],\"ALERTA: La quantia de la subvenció atorgada no pot superar el 80% de la despesa total del projecte a subvencionar\", \" \")","v":" "},null,null,"DADES BÀSIQUES PROJECTE REFORMULAT"]
["Import total del projecte subvencionable",null,null,null,null,"Import total del projecte REFORMULAT"]
["Import imputable a la subvenció municipal",null,null,null,null,"Import imputable a la subvenció ATORGADA"]
["Import de l'aportació / Cofinançament de l'organització",{"$f":"+B11-B12","v":0},null,null,null,"Import de l'aportació / Cofinançament de l'organització",{"$f":"G11-G12","v":0}]
["% de l'import sol·licitat respecte el total del projecte subvencionable (*)",{"$f":"B12/B11","v":{"$error":"#DIV/0!"}},null,null,null,"% de l'import sol·licitat respecte el total del projecte subvencionat",{"$f":"G12/G11","v":{"$error":"#DIV/0!"}},{"$f":"+IF(G14>Dadesbasiques[[#This Row],[Columna1]],\"*Aquest percentatge ha de ser igual o menor al percentatge subvencionat inicialment.\",\" \")","v":{"$error":"#DIV/0!"}}]
["Data inici del projecte subvencionat (dd/mm/aaaa)",null,{"$f":"+IF(H15>Dadesbasiques[[#This Row],[Columna1]],\"ALERTA: La quantia de la subvenció atorgada no pot superar el 80% de la despesa total del projecte a subvencionar\", \" \")","v":" "}]
["Data fi del projecte subvencionat (dd/mm/aaaa)",null,{"$f":"+IF(H16>Dadesbasiques[[#This Row],[Columna1]],\"ALERTA: La quantia de la subvenció atorgada no pot superar el 80% de la despesa total del projecte a subvencionar\", \" \")","v":" "}]
[]
["PREVISIÓ DE DESPESES DEL PROJECTE SUBVENCIONABLE INICIAL",null,null,null,null,"PREVISIÓ DE DESPESES DEL PROJECTE REFORMULAT",null,null,null,null,"DIFERÈNCIA REFORMULACIÓ I PROJECTE INICIAL"]
[]
["Partides","Import imputable a la subvenció municipal","Import de l'aportació / Cofinançament de l'organització","Import total del projecte",null,"Partides","Import imputable a la subvenció municipal","Import de l'aportació / Cofinançament de l'organització","Import total del projecte",null,"Import imputable a la subvenció municipal","Import de l'aportació / Cofinançament de l'organització","Import total del projecte"]
["D1. Retribucions i seguretat social (règim general) del personal propi vinculat/da directament al projecte (màxim 20% subvenció)",{"$f":"SUM(B22:B25)","v":0},{"$f":"SUM(C22:C25)","v":0},{"$f":"DespesesProjecte5[[#This Row],[Import imputable a la subvenció municipal]]+DespesesProjecte5[[#This Row],[Import de l''aportació / Cofinançament de l''organització]]","v":0},null,"D1. Retribucions i seguretat social (règim general) del personal propi vinculat/da directament al projecte (màxim 20% subvenció)",{"$f":"SUM(G22:G25)","v":0},{"$f":"SUM(H22:H25)","v":0},{"$f":"+G21+H21","v":0},null,{"$f":"DespesesProjecte5[[#This Row],[Import imputable a la subvenció municipal]]-G21","v":0},{"$f":"DespesesProjecte5[[#This Row],[Import de l''aportació / Cofinançament de l''organització]]-H21","v":0},{"$f":"DespesesProjecte5[[#This Row],[Import total del projecte]]-I21","v":0}]
[null,null,null,{"$f":"SUM(DespesesProjecte5[[#This Row],[Import imputable a la subvenció municipal]],DespesesProjecte5[[#This Row],[Import de l''aportació / Cofinançament de l''organització]])","v":0},null,null,null,null,{"$f":"+G22+H22","v":0},null,{"$f":"DespesesProjecte5[[#This Row],[Import imputable a la subvenció municipal]]-G22","v":0},{"$f":"DespesesProjecte5[[#This Row],[Import de l''aportació / Cofinançament de l''organització]]-H22","v":0},{"$f":"DespesesProjecte5[[#This Row],[Import total del projecte]]-I22","v":0}]
[null,null,null,{"$f":"SUM(DespesesProjecte5[[#This Row],[Import imputable a la subvenció municipal]],DespesesProjecte5[[#This Row],[Import de l''aportació / Cofinançament de l''organització]])","v":0},null,null,null,null,0,null,{"$f":"DespesesProjecte5[[#This Row],[Import imputable a la subvenció municipal]]-G23","v":0},{"$f":"DespesesProjecte5[[#This Row],[Import de l''aportació / Cofinançament de l''organització]]-H23","v":0},{"$f":"DespesesProjecte5[[#This Row],[Import total del projecte]]-I23","v":0}]
[null,null,null,{"$f":"SUM(DespesesProjecte5[[#This Row],[Import imputable a la subvenció municipal]],DespesesProjecte5[[#This Row],[Import de l''aportació / Cofinançament de l''organització]])","v":0},null,null,null,null,0,null,{"$f":"DespesesProjecte5[[#This Row],[Import imputable a la subvenció municipal]]-G24","v":0},{"$f":"DespesesProjecte5[[#This Row],[Import de l''aportació / Cofinançament de l''organització]]-H24","v":0},{"$f":"DespesesProjecte5[[#This Row],[Import total del projecte]]-I24","v":0}]
[null,null,null,{"$f":"SUM(DespesesProjecte5[[#This Row],[Import imputable a la subvenció municipal]],DespesesProjecte5[[#This Row],[Import de l''aportació / Cofinançament de l''organització]])","v":0},null,null,null,null,0,null,{"$f":"DespesesProjecte5[[#This Row],[Import imputable a la subvenció municipal]]-G25","v":0},{"$f":"DespesesProjecte5[[#This Row],[Import de l''aportació / Cofinançament de l''organització]]-H25","v":0},{"$f":"DespesesProjecte5[[#This Row],[Import total del projecte]]-I25","v":0}]
["TOTAL DE DESPESES DEL PERSONAL\nMàxim 20% de l'import imputable a la subvenció municipal",{"$f":"B21","v":0},{"$f":"C21","v":0},{"$f":"D21","v":0},null,"TOTAL DE DESPESES DEL PERSONAL\nMàxim 20% de l'import imputable a la subvenció municipal",{"$f":"G21","v":0},{"$f":"H21","v":0},{"$f":"I21","v":0},{"$f":"+IF(G26>G12*0.25,\"ALERTA: Màxim 25% de l'import imputable a la subvenció municipal\", \" \")","v":" "},{"$f":"DespesesProjecte5[[#This Row],[Import imputable a la subvenció municipal]]-G26","v":0},{"$f":"DespesesProjecte5[[#This Row],[Import de l''aportació / Cofinançament de l''organització]]-H26","v":0},{"$f":"DespesesProjecte5[[#This Row],[Import total del projecte]]-I26","v":0}]
["D2. Treballs realitzats per professionals i empreses externes directament vinculades a l’acompanyament de processos de l’organització i amb les seves associades vinculats a les accions subvencionades",{"$f":"SUM(B28:B30)","v":0},{"$f":"SUM(C28:C30)","v":0},{"$f":"SUM(DespesesProjecte5[[#This Row],[Import imputable a la subvenció municipal]],DespesesProjecte5[[#This Row],[Import de l''aportació / Cofinançament de l''organització]])","v":0},null,"D2. Treballs realitzats per professionals i empreses externes directament vinculades a l’acompanyament de processos de l’organització i amb les seves associades vinculats a les accions subvencionades",{"$f":"SUM(G28:G30)","v":0},{"$f":"SUM(H28:H30)","v":0},0,null,{"$f":"DespesesProjecte5[[#This Row],[Import imputable a la subvenció municipal]]-G27","v":0},{"$f":"DespesesProjecte5[[#This Row],[Import de l''aportació / Cofinançament de l''organització]]-H27","v":0},{"$f":"DespesesProjecte5[[#This Row],[Import total del projecte]]-I27","v":0}]
[null,null,null,{"$f":"SUM(DespesesProjecte5[[#This Row],[Import imputable a la subvenció municipal]],DespesesProjecte5[[#This Row],[Import de l''aportació / Cofinançament de l''organització]])","v":0},null,null,null,null,0,null,{"$f":"DespesesProjecte5[[#This Row],[Import imputable a la subvenció municipal]]-G28","v":0},{"$f":"DespesesProjecte5[[#This Row],[Import de l''aportació / Cofinançament de l''organització]]-H28","v":0},{"$f":"DespesesProjecte5[[#This Row],[Import total del projecte]]-I28","v":0}]
[null,null,null,{"$f":"SUM(DespesesProjecte5[[#This Row],[Import imputable a la subvenció municipal]],DespesesProjecte5[[#This Row],[Import de l''aportació / Cofinançament de l''organització]])","v":0},null,null,null,null,0,null,{"$f":"DespesesProjecte5[[#This Row],[Import imputable a la subvenció municipal]]-G29","v":0},{"$f":"DespesesProjecte5[[#This Row],[Import de l''aportació / Cofinançament de l''organització]]-H29","v":0},{"$f":"DespesesProjecte5[[#This Row],[Import total del projecte]]-I29","v":0}]
[null,null,null,{"$f":"SUM(DespesesProjecte5[[#This Row],[Import imputable a la subvenció municipal]],DespesesProjecte5[[#This Row],[Import de l''aportació / Cofinançament de l''organització]])","v":0},null,null,null,null,0,null,{"$f":"DespesesProjecte5[[#This Row],[Import imputable a la subvenció municipal]]-G30","v":0},{"$f":"DespesesProjecte5[[#This Row],[Import de l''aportació / Cofinançament de l''organització]]-H30","v":0},{"$f":"DespesesProjecte5[[#This Row],[Import total del projecte]]-I30","v":0}]
["D3. Lloguer de béns immobles directament vinculats al projecte subvencionable",{"$f":"SUM(B32:B34)","v":0},{"$f":"SUM(C32:C34)","v":0},{"$f":"SUM(DespesesProjecte5[[#This Row],[Import imputable a la subvenció municipal]],DespesesProjecte5[[#This Row],[Import de l''aportació / Cofinançament de l''organització]])","v":0},null,"D3. Lloguer de béns immobles directament vinculats al projecte subvencionable",{"$f":"SUM(G32:G34)","v":0},{"$f":"SUM(H32:H34)","v":0},0,null,{"$f":"DespesesProjecte5[[#This Row],[Import imputable a la subvenció municipal]]-G31","v":0},{"$f":"DespesesProjecte5[[#This Row],[Import de l''aportació / Cofinançament de l''organització]]-H31","v":0},{"$f":"DespesesProjecte5[[#This Row],[Import total del projecte]]-I31","v":0}]
[null,null,null,{"$f":"SUM(DespesesProjecte5[[#This Row],[Import imputable a la subvenció municipal]],DespesesProjecte5[[#This Row],[Import de l''aportació / Cofinançament de l''organització]])","v":0},null,null,null,null,0,null,{"$f":"DespesesProjecte5[[#This Row],[Import imputable a la subvenció municipal]]-G32","v":0},{"$f":"DespesesProjecte5[[#This Row],[Import de l''aportació / Cofinançament de l''organització]]-H32","v":0},{"$f":"DespesesProjecte5[[#This Row],[Import total del projecte]]-I32","v":0}]
[null,null,null,{"$f":"SUM(DespesesProjecte5[[#This Row],[Import imputable a la subvenció municipal]],DespesesProjecte5[[#This Row],[Import de l''aportació / Cofinançament de l''organització]])","v":0},null,null,null,null,0,null,{"$f":"DespesesProjecte5[[#This Row],[Import imputable a la subvenció municipal]]-G33","v":0},{"$f":"DespesesProjecte5[[#This Row],[Import de l''aportació / Cofinançament de l''organització]]-H33","v":0},{"$f":"DespesesProjecte5[[#This Row],[Import total del projecte]]-I33","v":0}]
[null,null,null,{"$f":"SUM(DespesesProjecte5[[#This Row],[Import imputable a la subvenció municipal]],DespesesProjecte5[[#This Row],[Import de l''aportació / Cofinançament de l''organització]])","v":0},null,null,null,null,0,null,{"$f":"DespesesProjecte5[[#This Row],[Import imputable a la subvenció municipal]]-G34","v":0},{"$f":"DespesesProjecte5[[#This Row],[Import de l''aportació / Cofinançament de l''organització]]-H34","v":0},{"$f":"DespesesProjecte5[[#This Row],[Import total del projecte]]-I34","v":0}]
["D4. Adquisició de materials i béns consumibles íntegrament imputables al projecte subvencionable",{"$f":"SUM(B36:B38)","v":0},{"$f":"SUM(C36:C38)","v":0},{"$f":"SUM(DespesesProjecte5[[#This Row],[Import imputable a la subvenció municipal]],DespesesProjecte5[[#This Row],[Import de l''aportació / Cofinançament de l''organització]])","v":0},null,"D4. Adquisició de materials i béns consumibles íntegrament imputables al projecte subvencionable",{"$f":"SUM(G36:G38)","v":0},{"$f":"SUM(H36:H38)","v":0},0,null,{"$f":"DespesesProjecte5[[#This Row],[Import imputable a la subvenció municipal]]-G35","v":0},{"$f":"DespesesProjecte5[[#This Row],[Import de l''aportació / Cofinançament de l''organització]]-H35","v":0},{"$f":"DespesesProjecte5[[#This Row],[Import total del projecte]]-I35","v":0}]
[null,null,null,{"$f":"SUM(DespesesProjecte5[[#This Row],[Import imputable a la subvenció municipal]],DespesesProjecte5[[#This Row],[Import de l''aportació / Cofinançament de l''organització]])","v":0},null,null,null,null,0,null,{"$f":"DespesesProjecte5[[#This Row],[Import imputable a la subvenció municipal]]-G36","v":0},{"$f":"DespesesProjecte5[[#This Row],[Import de l''aportació / Cofinançament de l''organització]]-H36","v":0},{"$f":"DespesesProjecte5[[#This Row],[Import total del projecte]]-I36","v":0}]
[null,null,null,{"$f":"SUM(DespesesProjecte5[[#This Row],[Import imputable a la subvenció municipal]],DespesesProjecte5[[#This Row],[Import de l''aportació / Cofinançament de l''organització]])","v":0},null,null,null,null,0,null,{"$f":"DespesesProjecte5[[#This Row],[Import imputable a la subvenció municipal]]-G37","v":0},{"$f":"DespesesProjecte5[[#This Row],[Import de l''aportació / Cofinançament de l''organització]]-H37","v":0},{"$f":"DespesesProjecte5[[#This Row],[Import total del projecte]]-I37","v":0}]
[null,null,null,{"$f":"SUM(DespesesProjecte5[[#This Row],[Import imputable a la subvenció municipal]],DespesesProjecte5[[#This Row],[Import de l''aportació / Cofinançament de l''organització]])","v":0},null,null,null,null,0,null,{"$f":"DespesesProjecte5[[#This Row],[Import imputable a la subvenció municipal]]-G38","v":0},{"$f":"DespesesProjecte5[[#This Row],[Import de l''aportació / Cofinançament de l''organització]]-H38","v":0},{"$f":"DespesesProjecte5[[#This Row],[Import total del projecte]]-I38","v":0}]
["D5. Publicitat i propaganda de les activitats directament vinculades al projecte subvencionable",{"$f":"SUM(B40:B42)","v":0},{"$f":"SUM(C40:C42)","v":0},{"$f":"SUM(DespesesProjecte5[[#This Row],[Import imputable a la subvenció municipal]],DespesesProjecte5[[#This Row],[Import de l''aportació / Cofinançament de l''organització]])","v":0},null,"D5. Publicitat i propaganda de les activitats directament vinculades al projecte subvencionable",{"$f":"SUM(G40:G42)","v":0},{"$f":"SUM(H40:H42)","v":0},0,null,{"$f":"DespesesProjecte5[[#This Row],[Import imputable a la subvenció municipal]]-G39","v":0},{"$f":"DespesesProjecte5[[#This Row],[Import de l''aportació / Cofinançament de l''organització]]-H39","v":0},{"$f":"DespesesProjecte5[[#This Row],[Import total del projecte]]-I39","v":0}]
[null,null,null,{"$f":"SUM(DespesesProjecte5[[#This Row],[Import imputable a la subvenció municipal]],DespesesProjecte5[[#This Row],[Import de l''aportació / Cofinançament de l''organització]])","v":0},null,null,null,null,0,null,{"$f":"DespesesProjecte5[[#This Row],[Import imputable a la subvenció municipal]]-G40","v":0},{"$f":"DespesesProjecte5[[#This Row],[Import de l''aportació / Cofinançament de l''organització]]-H40","v":0},{"$f":"DespesesProjecte5[[#This Row],[Import total del projecte]]-I40","v":0}]
[null,null,null,{"$f":"SUM(DespesesProjecte5[[#This Row],[Import imputable a la subvenció municipal]],DespesesProjecte5[[#This Row],[Import de l''aportació / Cofinançament de l''organització]])","v":0},null,null,null,null,0,null,{"$f":"DespesesProjecte5[[#This Row],[Import imputable a la subvenció municipal]]-G41","v":0},{"$f":"DespesesProjecte5[[#This Row],[Import de l''aportació / Cofinançament de l''organització]]-H41","v":0},{"$f":"DespesesProjecte5[[#This Row],[Import total del projecte]]-I41","v":0}]
[null,null,null,{"$f":"SUM(DespesesProjecte5[[#This Row],[Import imputable a la subvenció municipal]],DespesesProjecte5[[#This Row],[Import de l''aportació / Cofinançament de l''organització]])","v":0},null,null,null,null,0,null,{"$f":"DespesesProjecte5[[#This Row],[Import imputable a la subvenció municipal]]-G42","v":0},{"$f":"DespesesProjecte5[[#This Row],[Import de l''aportació / Cofinançament de l''organització]]-H42","v":0},{"$f":"DespesesProjecte5[[#This Row],[Import total del projecte]]-I42","v":0}]
["D6. Viatges i desplaçaments imputables a les activitats del projecte subvencionable (amb un límit del 7% de la subvenció)",{"$f":"SUM(B44:B46)","v":0},{"$f":"SUM(C44:C46)","v":0},{"$f":"SUM(DespesesProjecte5[[#This Row],[Import imputable a la subvenció municipal]],DespesesProjecte5[[#This Row],[Import de l''aportació / Cofinançament de l''organització]])","v":0},null,"D6. Viatges i desplaçaments imputables a les activitats del projecte subvencionable (amb un límit del 7% de la subvenció)",{"$f":"SUM(G44:G46)","v":0},{"$f":"SUM(H44:H46)","v":0},0,{"$f":"+IF(G43>G12*0.1,\"ALERTA: Màxim 10% de l'import imputable a la subvenció municipal\", \" \")","v":" "},{"$f":"DespesesProjecte5[[#This Row],[Import imputable a la subvenció municipal]]-G43","v":0},{"$f":"DespesesProjecte5[[#This Row],[Import de l''aportació / Cofinançament de l''organització]]-H43","v":0},{"$f":"DespesesProjecte5[[#This Row],[Import total del projecte]]-I43","v":0}]
[null,null,null,{"$f":"SUM(DespesesProjecte5[[#This Row],[Import imputable a la subvenció municipal]],DespesesProjecte5[[#This Row],[Import de l''aportació / Cofinançament de l''organització]])","v":0},null,null,null,null,0,null,{"$f":"DespesesProjecte5[[#This Row],[Import imputable a la subvenció municipal]]-G44","v":0},{"$f":"DespesesProjecte5[[#This Row],[Import de l''aportació / Cofinançament de l''organització]]-H44","v":0},{"$f":"DespesesProjecte5[[#This Row],[Import total del projecte]]-I44","v":0}]
[null,null,null,{"$f":"SUM(DespesesProjecte5[[#This Row],[Import imputable a la subvenció municipal]],DespesesProjecte5[[#This Row],[Import de l''aportació / Cofinançament de l''organització]])","v":0},null,null,null,null,0,null,{"$f":"DespesesProjecte5[[#This Row],[Import imputable a la subvenció municipal]]-G45","v":0},{"$f":"DespesesProjecte5[[#This Row],[Import de l''aportació / Cofinançament de l''organització]]-H45","v":0},{"$f":"DespesesProjecte5[[#This Row],[Import total del projecte]]-I45","v":0}]
[null,null,null,{"$f":"SUM(DespesesProjecte5[[#This Row],[Import imputable a la subvenció municipal]],DespesesProjecte5[[#This Row],[Import de l''aportació / Cofinançament de l''organització]])","v":0},null,null,null,null,0,null,{"$f":"DespesesProjecte5[[#This Row],[Import imputable a la subvenció municipal]]-G46","v":0},{"$f":"DespesesProjecte5[[#This Row],[Import de l''aportació / Cofinançament de l''organització]]-H46","v":0},{"$f":"DespesesProjecte5[[#This Row],[Import total del projecte]]-I46","v":0}]
["D7. Despeses de l’informe d’auditoria (màxim 1.500€ subvenció)",{"$f":"SUM(B48:B50)","v":0},{"$f":"SUM(C48:C50)","v":0},{"$f":"SUM(DespesesProjecte5[[#This Row],[Import imputable a la subvenció municipal]],DespesesProjecte5[[#This Row],[Import de l''aportació / Cofinançament de l''organització]])","v":0},null,"D7. Despeses de l’informe d’auditoria (màxim 1.500€ subvenció)",{"$f":"SUM(G48:G50)","v":0},{"$f":"SUM(H48:H50)","v":0},0,{"$f":"+IF(G47>1500,\"ALERTA: Màxim 1.500€ imputables a la subvenció\", \" \")","v":" "},{"$f":"DespesesProjecte5[[#This Row],[Import imputable a la subvenció municipal]]-G47","v":0},{"$f":"DespesesProjecte5[[#This Row],[Import de l''aportació / Cofinançament de l''organització]]-H47","v":0},{"$f":"DespesesProjecte5[[#This Row],[Import total del projecte]]-I47","v":0}]
[null,null,null,{"$f":"SUM(DespesesProjecte5[[#This Row],[Import imputable a la subvenció municipal]],DespesesProjecte5[[#This Row],[Import de l''aportació / Cofinançament de l''organització]])","v":0},null,null,null,null,0,null,{"$f":"DespesesProjecte5[[#This Row],[Import imputable a la subvenció municipal]]-G48","v":0},{"$f":"DespesesProjecte5[[#This Row],[Import de l''aportació / Cofinançament de l''organització]]-H48","v":0},{"$f":"DespesesProjecte5[[#This Row],[Import total del projecte]]-I48","v":0}]
[null,null,null,{"$f":"SUM(DespesesProjecte5[[#This Row],[Import imputable a la subvenció municipal]],DespesesProjecte5[[#This Row],[Import de l''aportació / Cofinançament de l''organització]])","v":0},null,null,null,null,0,null,{"$f":"DespesesProjecte5[[#This Row],[Import imputable a la subvenció municipal]]-G49","v":0},{"$f":"DespesesProjecte5[[#This Row],[Import de l''aportació / Cofinançament de l''organització]]-H49","v":0},{"$f":"DespesesProjecte5[[#This Row],[Import total del projecte]]-I49","v":0}]
[null,null,null,{"$f":"SUM(DespesesProjecte5[[#This Row],[Import imputable a la subvenció municipal]],DespesesProjecte5[[#This Row],[Import de l''aportació / Cofinançament de l''organització]])","v":0},null,null,null,null,0,null,{"$f":"DespesesProjecte5[[#This Row],[Import imputable a la subvenció municipal]]-G50","v":0},{"$f":"DespesesProjecte5[[#This Row],[Import de l''aportació / Cofinançament de l''organització]]-H50","v":0},{"$f":"DespesesProjecte5[[#This Row],[Import total del projecte]]-I50","v":0}]
["D8. Altres despeses que de manera justificada puguin imputar-se directament al projecte subvencionable",{"$f":"SUM(B52:B54)","v":0},{"$f":"SUM(C52:C54)","v":0},{"$f":"SUM(DespesesProjecte5[[#This Row],[Import imputable a la subvenció municipal]],DespesesProjecte5[[#This Row],[Import de l''aportació / Cofinançament de l''organització]])","v":0},null,"D8. Altres despeses que de manera justificada puguin imputar-se directament al projecte subvencionable",{"$f":"SUM(G52:G54)","v":0},{"$f":"SUM(H52:H54)","v":0},0,null,{"$f":"DespesesProjecte5[[#This Row],[Import imputable a la subvenció municipal]]-G51","v":0},{"$f":"DespesesProjecte5[[#This Row],[Import de l''aportació / Cofinançament de l''organització]]-H51","v":0},{"$f":"DespesesProjecte5[[#This Row],[Import total del projecte]]-I51","v":0}]
[null,null,null,{"$f":"SUM(DespesesProjecte5[[#This Row],[Import imputable a la subvenció municipal]],DespesesProjecte5[[#This Row],[Import de l''aportació / Cofinançament de l''organització]])","v":0},null,null,null,null,0,null,{"$f":"DespesesProjecte5[[#This Row],[Import imputable a la subvenció municipal]]-G52","v":0},{"$f":"DespesesProjecte5[[#This Row],[Import de l''aportació / Cofinançament de l''organització]]-H52","v":0},{"$f":"DespesesProjecte5[[#This Row],[Import total del projecte]]-I52","v":0}]
[null,null,null,{"$f":"SUM(DespesesProjecte5[[#This Row],[Import imputable a la subvenció municipal]],DespesesProjecte5[[#This Row],[Import de l''aportació / Cofinançament de l''organització]])","v":0},null,null,null,null,0,null,{"$f":"DespesesProjecte5[[#This Row],[Import imputable a la subvenció municipal]]-G53","v":0},{"$f":"DespesesProjecte5[[#This Row],[Import de l''aportació / Cofinançament de l''organització]]-H53","v":0},{"$f":"DespesesProjecte5[[#This Row],[Import total del projecte]]-I53","v":0}]
[null,null,null,{"$f":"SUM(DespesesProjecte5[[#This Row],[Import imputable a la subvenció municipal]],DespesesProjecte5[[#This Row],[Import de l''aportació / Cofinançament de l''organització]])","v":0},null,null,null,null,0,null,{"$f":"DespesesProjecte5[[#This Row],[Import imputable a la subvenció municipal]]-G54","v":0},{"$f":"DespesesProjecte5[[#This Row],[Import de l''aportació / Cofinançament de l''organització]]-H54","v":0},{"$f":"DespesesProjecte5[[#This Row],[Import total del projecte]]-I54","v":0}]
["TOTAL D'ALTRES DESPESES DIRECTES ",{"$f":"SUM(B27,B31,B35,B39,B43,B47,B51)","v":0},{"$f":"SUM(C27,C31,C35,C39,C43,C47,C51)","v":0},{"$f":"SUM(D27,D31,D35,D39,D43,D47,D51)","v":0},null,"TOTAL D'ALTRES DESPESES DIRECTES ",{"$f":"SUM(G27,G31,G35,G39,G43,G47,G51)","v":0},{"$f":"SUM(H27,H31,H35,H39,H43,H47,H51)","v":0},{"$f":"SUM(I27,I31,I35,I39,I43,I47,I51)","v":0},null,{"$f":"DespesesProjecte5[[#This Row],[Import imputable a la subvenció municipal]]-G55","v":0},{"$f":"DespesesProjecte5[[#This Row],[Import de l''aportació / Cofinançament de l''organització]]-H55","v":0},{"$f":"DespesesProjecte5[[#This Row],[Import total del projecte]]-I55","v":0}]
["TOTAL DESPESES DIRECTES (aquelles que s’identifiquen directament amb el projecte subvencionable)",{"$f":"SUM(B26,B55)","v":0},{"$f":"SUM(C26,C55)","v":0},{"$f":"SUM(D26,D55)","v":0},null,"TOTAL DESPESES DIRECTES (aquelles que s’identifiquen directament amb el projecte subvencionable)",{"$f":"SUM(G26,G55)","v":0},{"$f":"SUM(H26,H55)","v":0},{"$f":"SUM(I26,I55)","v":0},null,{"$f":"DespesesProjecte5[[#This Row],[Import imputable a la subvenció municipal]]-G56","v":0},{"$f":"DespesesProjecte5[[#This Row],[Import de l''aportació / Cofinançament de l''organització]]-H56","v":0},{"$f":"DespesesProjecte5[[#This Row],[Import total del projecte]]-I56","v":0}]
["I1. Personal propi vinculat indirectament (nòmines i seguretat social) ",{"$f":"SUM(B58:B60)","v":0},{"$f":"SUM(C58:C60)","v":0},{"$f":"SUM(DespesesProjecte5[[#This Row],[Import imputable a la subvenció municipal]],DespesesProjecte5[[#This Row],[Import de l''aportació / Cofinançament de l''organització]])","v":0},null,"I1. Personal propi vinculat indirectament (nòmines i seguretat social) ",{"$f":"SUM(G58:G60)","v":0},{"$f":"SUM(H58:H60)","v":0},{"$f":"+G57+H57","v":0},null,{"$f":"DespesesProjecte5[[#This Row],[Import imputable a la subvenció municipal]]-G57","v":0},{"$f":"DespesesProjecte5[[#This Row],[Import de l''aportació / Cofinançament de l''organització]]-H57","v":0},{"$f":"DespesesProjecte5[[#This Row],[Import total del projecte]]-I57","v":0}]
[null,null,null,{"$f":"SUM(DespesesProjecte5[[#This Row],[Import imputable a la subvenció municipal]],DespesesProjecte5[[#This Row],[Import de l''aportació / Cofinançament de l''organització]])","v":0},null,null,null,null,{"$f":"+G58+H58","v":0},null,{"$f":"DespesesProjecte5[[#This Row],[Import imputable a la subvenció municipal]]-G58","v":0},{"$f":"DespesesProjecte5[[#This Row],[Import de l''aportació / Cofinançament de l''organització]]-H58","v":0},{"$f":"DespesesProjecte5[[#This Row],[Import total del projecte]]-I58","v":0}]
[null,null,null,{"$f":"SUM(DespesesProjecte5[[#This Row],[Import imputable a la subvenció municipal]],DespesesProjecte5[[#This Row],[Import de l''aportació / Cofinançament de l''organització]])","v":0},null,null,null,null,0,null,{"$f":"DespesesProjecte5[[#This Row],[Import imputable a la subvenció municipal]]-G59","v":0},{"$f":"DespesesProjecte5[[#This Row],[Import de l''aportació / Cofinançament de l''organització]]-H59","v":0},{"$f":"DespesesProjecte5[[#This Row],[Import total del projecte]]-I59","v":0}]
[null,null,null,{"$f":"SUM(DespesesProjecte5[[#This Row],[Import imputable a la subvenció municipal]],DespesesProjecte5[[#This Row],[Import de l''aportació / Cofinançament de l''organització]])","v":0},null,null,null,null,0,null,{"$f":"DespesesProjecte5[[#This Row],[Import imputable a la subvenció municipal]]-G60","v":0},{"$f":"DespesesProjecte5[[#This Row],[Import de l''aportació / Cofinançament de l''organització]]-H60","v":0},{"$f":"DespesesProjecte5[[#This Row],[Import total del projecte]]-I60","v":0}]
["I2. Assegurances",{"$f":"SUM(B62:B64)","v":0},{"$f":"SUM(C62:C64)","v":0},{"$f":"SUM(DespesesProjecte5[[#This Row],[Import imputable a la subvenció municipal]],DespesesProjecte5[[#This Row],[Import de l''aportació / Cofinançament de l''organització]])","v":0},null,"I2. Assegurances",{"$f":"SUM(G62:G64)","v":0},{"$f":"SUM(H62:H64)","v":0},0,null,{"$f":"DespesesProjecte5[[#This Row],[Import imputable a la subvenció municipal]]-G61","v":0},{"$f":"DespesesProjecte5[[#This Row],[Import de l''aportació / Cofinançament de l''organització]]-H61","v":0},{"$f":"DespesesProjecte5[[#This Row],[Import total del projecte]]-I61","v":0}]
[null,null,null,{"$f":"SUM(DespesesProjecte5[[#This Row],[Import imputable a la subvenció municipal]],DespesesProjecte5[[#This Row],[Import de l''aportació / Cofinançament de l''organització]])","v":0},null,null,null,null,0,null,{"$f":"DespesesProjecte5[[#This Row],[Import imputable a la subvenció municipal]]-G62","v":0},{"$f":"DespesesProjecte5[[#This Row],[Import de l''aportació / Cofinançament de l''organització]]-H62","v":0},{"$f":"DespesesProjecte5[[#This Row],[Import total del projecte]]-I62","v":0}]
[null,null,null,{"$f":"SUM(DespesesProjecte5[[#This Row],[Import imputable a la subvenció municipal]],DespesesProjecte5[[#This Row],[Import de l''aportació / Cofinançament de l''organització]])","v":0},null,null,null,null,0,null,{"$f":"DespesesProjecte5[[#This Row],[Import imputable a la subvenció municipal]]-G63","v":0},{"$f":"DespesesProjecte5[[#This Row],[Import de l''aportació / Cofinançament de l''organització]]-H63","v":0},{"$f":"DespesesProjecte5[[#This Row],[Import total del projecte]]-I63","v":0}]
[null,null,null,{"$f":"SUM(DespesesProjecte5[[#This Row],[Import imputable a la subvenció municipal]],DespesesProjecte5[[#This Row],[Import de l''aportació / Cofinançament de l''organització]])","v":0},null,null,null,null,0,null,{"$f":"DespesesProjecte5[[#This Row],[Import imputable a la subvenció municipal]]-G64","v":0},{"$f":"DespesesProjecte5[[#This Row],[Import de l''aportació / Cofinançament de l''organització]]-H64","v":0},{"$f":"DespesesProjecte5[[#This Row],[Import total del projecte]]-I64","v":0}]
["I3. Amortització",{"$f":"SUM(B66:B68)","v":0},{"$f":"SUM(C66:C68)","v":0},{"$f":"SUM(DespesesProjecte5[[#This Row],[Import imputable a la subvenció municipal]],DespesesProjecte5[[#This Row],[Import de l''aportació / Cofinançament de l''organització]])","v":0},null,"I3. Amortització",{"$f":"SUM(G66:G68)","v":0},{"$f":"SUM(H66:H68)","v":0},0,null,{"$f":"DespesesProjecte5[[#This Row],[Import imputable a la subvenció municipal]]-G65","v":0},{"$f":"DespesesProjecte5[[#This Row],[Import de l''aportació / Cofinançament de l''organització]]-H65","v":0},{"$f":"DespesesProjecte5[[#This Row],[Import total del projecte]]-I65","v":0}]
[null,null,null,{"$f":"SUM(DespesesProjecte5[[#This Row],[Import imputable a la subvenció municipal]],DespesesProjecte5[[#This Row],[Import de l''aportació / Cofinançament de l''organització]])","v":0},null,null,null,null,0,null,{"$f":"DespesesProjecte5[[#This Row],[Import imputable a la subvenció municipal]]-G66","v":0},{"$f":"DespesesProjecte5[[#This Row],[Import de l''aportació / Cofinançament de l''organització]]-H66","v":0},{"$f":"DespesesProjecte5[[#This Row],[Import total del projecte]]-I66","v":0}]
[null,null,null,{"$f":"SUM(DespesesProjecte5[[#This Row],[Import imputable a la subvenció municipal]],DespesesProjecte5[[#This Row],[Import de l''aportació / Cofinançament de l''organització]])","v":0},null,null,null,null,0,null,{"$f":"DespesesProjecte5[[#This Row],[Import imputable a la subvenció municipal]]-G67","v":0},{"$f":"DespesesProjecte5[[#This Row],[Import de l''aportació / Cofinançament de l''organització]]-H67","v":0},{"$f":"DespesesProjecte5[[#This Row],[Import total del projecte]]-I67","v":0}]
[null,null,null,{"$f":"SUM(DespesesProjecte5[[#This Row],[Import imputable a la subvenció municipal]],DespesesProjecte5[[#This Row],[Import de l''aportació / Cofinançament de l''organització]])","v":0},null,null,null,null,0,null,{"$f":"DespesesProjecte5[[#This Row],[Import imputable a la subvenció municipal]]-G68","v":0},{"$f":"DespesesProjecte5[[#This Row],[Import de l''aportació / Cofinançament de l''organització]]-H68","v":0},{"$f":"DespesesProjecte5[[#This Row],[Import total del projecte]]-I68","v":0}]
["I4. Lloguer de béns immobles",{"$f":"SUM(B70:B72)","v":0},{"$f":"SUM(C70:C72)","v":0},{"$f":"SUM(DespesesProjecte5[[#This Row],[Import imputable a la subvenció municipal]],DespesesProjecte5[[#This Row],[Import de l''aportació / Cofinançament de l''organització]])","v":0},null,"I4. Lloguer de béns immobles",{"$f":"SUM(G70:G72)","v":0},{"$f":"SUM(H70:H72)","v":0},0,null,{"$f":"DespesesProjecte5[[#This Row],[Import imputable a la subvenció municipal]]-G69","v":0},{"$f":"DespesesProjecte5[[#This Row],[Import de l''aportació / Cofinançament de l''organització]]-H69","v":0},{"$f":"DespesesProjecte5[[#This Row],[Import total del projecte]]-I69","v":0}]
[null,null,null,{"$f":"SUM(DespesesProjecte5[[#This Row],[Import imputable a la subvenció municipal]],DespesesProjecte5[[#This Row],[Import de l''aportació / Cofinançament de l''organització]])","v":0},null,null,null,null,0,null,{"$f":"DespesesProjecte5[[#This Row],[Import imputable a la subvenció municipal]]-G70","v":0},{"$f":"DespesesProjecte5[[#This Row],[Import de l''aportació / Cofinançament de l''organització]]-H70","v":0},{"$f":"DespesesProjecte5[[#This Row],[Import total del projecte]]-I70","v":0}]
[null,null,null,{"$f":"SUM(DespesesProjecte5[[#This Row],[Import imputable a la subvenció municipal]],DespesesProjecte5[[#This Row],[Import de l''aportació / Cofinançament de l''organització]])","v":0},null,null,null,null,0,null,{"$f":"DespesesProjecte5[[#This Row],[Import imputable a la subvenció municipal]]-G71","v":0},{"$f":"DespesesProjecte5[[#This Row],[Import de l''aportació / Cofinançament de l''organització]]-H71","v":0},{"$f":"DespesesProjecte5[[#This Row],[Import total del projecte]]-I71","v":0}]
[null,null,null,{"$f":"SUM(DespesesProjecte5[[#This Row],[Import imputable a la subvenció municipal]],DespesesProjecte5[[#This Row],[Import de l''aportació / Cofinançament de l''organització]])","v":0},null,null,null,null,0,null,{"$f":"DespesesProjecte5[[#This Row],[Import imputable a la subvenció municipal]]-G72","v":0},{"$f":"DespesesProjecte5[[#This Row],[Import de l''aportació / Cofinançament de l''organització]]-H72","v":0},{"$f":"DespesesProjecte5[[#This Row],[Import total del projecte]]-I72","v":0}]
["I5. Adquisició de materials i béns consumibles parcialment imputables al projecte",{"$f":"SUM(B74:B76)","v":0},{"$f":"SUM(C74:C76)","v":0},{"$f":"SUM(DespesesProjecte5[[#This Row],[Import imputable a la subvenció municipal]],DespesesProjecte5[[#This Row],[Import de l''aportació / Cofinançament de l''organització]])","v":0},null,"I5. Adquisició de materials i béns consumibles parcialment imputables al projecte",{"$f":"SUM(G74:G76)","v":0},{"$f":"SUM(H74:H76)","v":0},0,null,{"$f":"DespesesProjecte5[[#This Row],[Import imputable a la subvenció municipal]]-G73","v":0},{"$f":"DespesesProjecte5[[#This Row],[Import de l''aportació / Cofinançament de l''organització]]-H73","v":0},{"$f":"DespesesProjecte5[[#This Row],[Import total del projecte]]-I73","v":0}]
[null,null,null,{"$f":"SUM(DespesesProjecte5[[#This Row],[Import imputable a la subvenció municipal]],DespesesProjecte5[[#This Row],[Import de l''aportació / Cofinançament de l''organització]])","v":0},null,null,null,null,0,null,{"$f":"DespesesProjecte5[[#This Row],[Import imputable a la subvenció municipal]]-G74","v":0},{"$f":"DespesesProjecte5[[#This Row],[Import de l''aportació / Cofinançament de l''organització]]-H74","v":0},{"$f":"DespesesProjecte5[[#This Row],[Import total del projecte]]-I74","v":0}]
[null,null,null,{"$f":"SUM(DespesesProjecte5[[#This Row],[Import imputable a la subvenció municipal]],DespesesProjecte5[[#This Row],[Import de l''aportació / Cofinançament de l''organització]])","v":0},null,null,null,null,0,null,{"$f":"DespesesProjecte5[[#This Row],[Import imputable a la subvenció municipal]]-G75","v":0},{"$f":"DespesesProjecte5[[#This Row],[Import de l''aportació / Cofinançament de l''organització]]-H75","v":0},{"$f":"DespesesProjecte5[[#This Row],[Import total del projecte]]-I75","v":0}]
[null,null,null,{"$f":"SUM(DespesesProjecte5[[#This Row],[Import imputable a la subvenció municipal]],DespesesProjecte5[[#This Row],[Import de l''aportació / Cofinançament de l''organització]])","v":0},null,null,null,null,0,null,{"$f":"DespesesProjecte5[[#This Row],[Import imputable a la subvenció municipal]]-G76","v":0},{"$f":"DespesesProjecte5[[#This Row],[Import de l''aportació / Cofinançament de l''organització]]-H76","v":0},{"$f":"DespesesProjecte5[[#This Row],[Import total del projecte]]-I76","v":0}]
["I6. Manteniment d’edificis i/o instal·lacions",{"$f":"SUM(B78:B80)","v":0},{"$f":"SUM(C78:C80)","v":0},{"$f":"SUM(DespesesProjecte5[[#This Row],[Import imputable a la subvenció municipal]],DespesesProjecte5[[#This Row],[Import de l''aportació / Cofinançament de l''organització]])","v":0},null,"I6. Manteniment d’edificis i/o instal·lacions",{"$f":"SUM(G78:G80)","v":0},{"$f":"SUM(H78:H80)","v":0},0,null,{"$f":"DespesesProjecte5[[#This Row],[Import imputable a la subvenció municipal]]-G77","v":0},{"$f":"DespesesProjecte5[[#This Row],[Import de l''aportació / Cofinançament de l''organització]]-H77","v":0},{"$f":"DespesesProjecte5[[#This Row],[Import total del projecte]]-I77","v":0}]
[null,null,null,{"$f":"SUM(DespesesProjecte5[[#This Row],[Import imputable a la subvenció municipal]],DespesesProjecte5[[#This Row],[Import de l''aportació / Cofinançament de l''organització]])","v":0},null,null,null,null,0,null,{"$f":"DespesesProjecte5[[#This Row],[Import imputable a la subvenció municipal]]-G78","v":0},{"$f":"DespesesProjecte5[[#This Row],[Import de l''aportació / Cofinançament de l''organització]]-H78","v":0},{"$f":"DespesesProjecte5[[#This Row],[Import total del projecte]]-I78","v":0}]
[null,null,null,{"$f":"SUM(DespesesProjecte5[[#This Row],[Import imputable a la subvenció municipal]],DespesesProjecte5[[#This Row],[Import de l''aportació / Cofinançament de l''organització]])","v":0},null,null,null,null,0,null,{"$f":"DespesesProjecte5[[#This Row],[Import imputable a la subvenció municipal]]-G79","v":0},{"$f":"DespesesProjecte5[[#This Row],[Import de l''aportació / Cofinançament de l''organització]]-H79","v":0},{"$f":"DespesesProjecte5[[#This Row],[Import total del projecte]]-I79","v":0}]
[null,null,null,{"$f":"SUM(DespesesProjecte5[[#This Row],[Import imputable a la subvenció municipal]],DespesesProjecte5[[#This Row],[Import de l''aportació / Cofinançament de l''organització]])","v":0},null,null,null,null,0,null,{"$f":"DespesesProjecte5[[#This Row],[Import imputable a la subvenció municipal]]-G80","v":0},{"$f":"DespesesProjecte5[[#This Row],[Import de l''aportació / Cofinançament de l''organització]]-H80","v":0},{"$f":"DespesesProjecte5[[#This Row],[Import total del projecte]]-I80","v":0}]
["I7. Comunicacions (telèfon, correus, connexió a internet)",{"$f":"SUM(B82:B84)","v":0},{"$f":"SUM(C82:C84)","v":0},{"$f":"SUM(DespesesProjecte5[[#This Row],[Import imputable a la subvenció municipal]],DespesesProjecte5[[#This Row],[Import de l''aportació / Cofinançament de l''organització]])","v":0},null,"I7. Comunicacions (telèfon, correus, connexió a internet)",{"$f":"SUM(G82:G84)","v":0},{"$f":"SUM(H82:H84)","v":0},0,null,{"$f":"DespesesProjecte5[[#This Row],[Import imputable a la subvenció municipal]]-G81","v":0},{"$f":"DespesesProjecte5[[#This Row],[Import de l''aportació / Cofinançament de l''organització]]-H81","v":0},{"$f":"DespesesProjecte5[[#This Row],[Import total del projecte]]-I81","v":0}]
[null,null,null,{"$f":"SUM(DespesesProjecte5[[#This Row],[Import imputable a la subvenció municipal]],DespesesProjecte5[[#This Row],[Import de l''aportació / Cofinançament de l''organització]])","v":0},null,null,null,null,0,null,{"$f":"DespesesProjecte5[[#This Row],[Import imputable a la subvenció municipal]]-G82","v":0},{"$f":"DespesesProjecte5[[#This Row],[Import de l''aportació / Cofinançament de l''organització]]-H82","v":0},{"$f":"DespesesProjecte5[[#This Row],[Import total del projecte]]-I82","v":0}]
[null,null,null,{"$f":"SUM(DespesesProjecte5[[#This Row],[Import imputable a la subvenció municipal]],DespesesProjecte5[[#This Row],[Import de l''aportació / Cofinançament de l''organització]])","v":0},null,null,null,null,0,null,{"$f":"DespesesProjecte5[[#This Row],[Import imputable a la subvenció municipal]]-G83","v":0},{"$f":"DespesesProjecte5[[#This Row],[Import de l''aportació / Cofinançament de l''organització]]-H83","v":0},{"$f":"DespesesProjecte5[[#This Row],[Import total del projecte]]-I83","v":0}]
[null,null,null,{"$f":"SUM(DespesesProjecte5[[#This Row],[Import imputable a la subvenció municipal]],DespesesProjecte5[[#This Row],[Import de l''aportació / Cofinançament de l''organització]])","v":0},null,null,null,null,0,null,{"$f":"DespesesProjecte5[[#This Row],[Import imputable a la subvenció municipal]]-G84","v":0},{"$f":"DespesesProjecte5[[#This Row],[Import de l''aportació / Cofinançament de l''organització]]-H84","v":0},{"$f":"DespesesProjecte5[[#This Row],[Import total del projecte]]-I84","v":0}]
["I8. Despeses financeres",{"$f":"SUM(B86:B88)","v":0},{"$f":"SUM(C86:C88)","v":0},{"$f":"SUM(DespesesProjecte5[[#This Row],[Import imputable a la subvenció municipal]],DespesesProjecte5[[#This Row],[Import de l''aportació / Cofinançament de l''organització]])","v":0},null,"I8. Despeses financeres",{"$f":"SUM(G86:G88)","v":0},{"$f":"SUM(H86:H88)","v":0},0,null,{"$f":"DespesesProjecte5[[#This Row],[Import imputable a la subvenció municipal]]-G85","v":0},{"$f":"DespesesProjecte5[[#This Row],[Import de l''aportació / Cofinançament de l''organització]]-H85","v":0},{"$f":"DespesesProjecte5[[#This Row],[Import total del projecte]]-I85","v":0}]
[null,null,null,{"$f":"SUM(DespesesProjecte5[[#This Row],[Import imputable a la subvenció municipal]],DespesesProjecte5[[#This Row],[Import de l''aportació / Cofinançament de l''organització]])","v":0},null,null,null,null,0,null,{"$f":"DespesesProjecte5[[#This Row],[Import imputable a la subvenció municipal]]-G86","v":0},{"$f":"DespesesProjecte5[[#This Row],[Import de l''aportació / Cofinançament de l''organització]]-H86","v":0},{"$f":"DespesesProjecte5[[#This Row],[Import total del projecte]]-I86","v":0}]
[null,null,null,{"$f":"SUM(DespesesProjecte5[[#This Row],[Import imputable a la subvenció municipal]],DespesesProjecte5[[#This Row],[Import de l''aportació / Cofinançament de l''organització]])","v":0},null,null,null,null,0,null,{"$f":"DespesesProjecte5[[#This Row],[Import imputable a la subvenció municipal]]-G87","v":0},{"$f":"DespesesProjecte5[[#This Row],[Import de l''aportació / Cofinançament de l''organització]]-H87","v":0},{"$f":"DespesesProjecte5[[#This Row],[Import total del projecte]]-I87","v":0}]
[null,null,null,{"$f":"SUM(DespesesProjecte5[[#This Row],[Import imputable a la subvenció municipal]],DespesesProjecte5[[#This Row],[Import de l''aportació / Cofinançament de l''organització]])","v":0},null,null,null,null,0,null,{"$f":"DespesesProjecte5[[#This Row],[Import imputable a la subvenció municipal]]-G88","v":0},{"$f":"DespesesProjecte5[[#This Row],[Import de l''aportació / Cofinançament de l''organització]]-H88","v":0},{"$f":"DespesesProjecte5[[#This Row],[Import total del projecte]]-I88","v":0}]
["I9. Subministraments ",{"$f":"SUM(B90:B92)","v":0},{"$f":"SUM(C90:C92)","v":0},{"$f":"SUM(DespesesProjecte5[[#This Row],[Import imputable a la subvenció municipal]],DespesesProjecte5[[#This Row],[Import de l''aportació / Cofinançament de l''organització]])","v":0},null,"I9. Subministraments ",{"$f":"SUM(G90:G92)","v":0},{"$f":"SUM(H90:H92)","v":0},0,null,{"$f":"DespesesProjecte5[[#This Row],[Import imputable a la subvenció municipal]]-G89","v":0},{"$f":"DespesesProjecte5[[#This Row],[Import de l''aportació / Cofinançament de l''organització]]-H89","v":0},{"$f":"DespesesProjecte5[[#This Row],[Import total del projecte]]-I89","v":0}]
[null,null,null,{"$f":"SUM(DespesesProjecte5[[#This Row],[Import imputable a la subvenció municipal]],DespesesProjecte5[[#This Row],[Import de l''aportació / Cofinançament de l''organització]])","v":0},null,null,null,null,0,null,{"$f":"DespesesProjecte5[[#This Row],[Import imputable a la subvenció municipal]]-G90","v":0},{"$f":"DespesesProjecte5[[#This Row],[Import de l''aportació / Cofinançament de l''organització]]-H90","v":0},{"$f":"DespesesProjecte5[[#This Row],[Import total del projecte]]-I90","v":0}]
[null,null,null,{"$f":"SUM(DespesesProjecte5[[#This Row],[Import imputable a la subvenció municipal]],DespesesProjecte5[[#This Row],[Import de l''aportació / Cofinançament de l''organització]])","v":0},null,null,null,null,0,null,{"$f":"DespesesProjecte5[[#This Row],[Import imputable a la subvenció municipal]]-G91","v":0},{"$f":"DespesesProjecte5[[#This Row],[Import de l''aportació / Cofinançament de l''organització]]-H91","v":0},{"$f":"DespesesProjecte5[[#This Row],[Import total del projecte]]-I91","v":0}]
[null,null,null,{"$f":"SUM(DespesesProjecte5[[#This Row],[Import imputable a la subvenció municipal]],DespesesProjecte5[[#This Row],[Import de l''aportació / Cofinançament de l''organització]])","v":0},null,null,null,null,0,null,{"$f":"DespesesProjecte5[[#This Row],[Import imputable a la subvenció municipal]]-G92","v":0},{"$f":"DespesesProjecte5[[#This Row],[Import de l''aportació / Cofinançament de l''organització]]-H92","v":0},{"$f":"DespesesProjecte5[[#This Row],[Import total del projecte]]-I92","v":0}]
["I10. Treball realitzat per altres empreses, parcialment imputables al projecte (neteja, seguretat...)",{"$f":"SUM(B94:B96)","v":0},{"$f":"SUM(C94:C96)","v":0},{"$f":"SUM(DespesesProjecte5[[#This Row],[Import imputable a la subvenció municipal]],DespesesProjecte5[[#This Row],[Import de l''aportació / Cofinançament de l''organització]])","v":0},null,"I10. Treball realitzat per altres empreses, parcialment imputables al projecte (neteja, seguretat...)",{"$f":"SUM(G94:G96)","v":0},{"$f":"SUM(H94:H96)","v":0},0,null,{"$f":"DespesesProjecte5[[#This Row],[Import imputable a la subvenció municipal]]-G93","v":0},{"$f":"DespesesProjecte5[[#This Row],[Import de l''aportació / Cofinançament de l''organització]]-H93","v":0},{"$f":"DespesesProjecte5[[#This Row],[Import total del projecte]]-I93","v":0}]
[null,null,null,{"$f":"SUM(DespesesProjecte5[[#This Row],[Import imputable a la subvenció municipal]],DespesesProjecte5[[#This Row],[Import de l''aportació / Cofinançament de l''organització]])","v":0},null,null,null,null,0,null,{"$f":"DespesesProjecte5[[#This Row],[Import imputable a la subvenció municipal]]-G94","v":0},{"$f":"DespesesProjecte5[[#This Row],[Import de l''aportació / Cofinançament de l''organització]]-H94","v":0},{"$f":"DespesesProjecte5[[#This Row],[Import total del projecte]]-I94","v":0}]
[null,null,null,{"$f":"SUM(DespesesProjecte5[[#This Row],[Import imputable a la subvenció municipal]],DespesesProjecte5[[#This Row],[Import de l''aportació / Cofinançament de l''organització]])","v":0},null,null,null,null,0,null,{"$f":"DespesesProjecte5[[#This Row],[Import imputable a la subvenció municipal]]-G95","v":0},{"$f":"DespesesProjecte5[[#This Row],[Import de l''aportació / Cofinançament de l''organització]]-H95","v":0},{"$f":"DespesesProjecte5[[#This Row],[Import total del projecte]]-I95","v":0}]
[null,null,null,{"$f":"SUM(DespesesProjecte5[[#This Row],[Import imputable a la subvenció municipal]],DespesesProjecte5[[#This Row],[Import de l''aportació / Cofinançament de l''organització]])","v":0},null,null,null,null,0,null,{"$f":"DespesesProjecte5[[#This Row],[Import imputable a la subvenció municipal]]-G96","v":0},{"$f":"DespesesProjecte5[[#This Row],[Import de l''aportació / Cofinançament de l''organització]]-H96","v":0},{"$f":"DespesesProjecte5[[#This Row],[Import total del projecte]]-I96","v":0}]
["TOTAL DESPESES INDIRECTES (es podran assignar al projecte subvencionable fent sevir un percentatge d’assignació) - Màxim 10% de l’import imputable a la subvenció municipal",{"$f":"SUM(B57,B61,B65,B69,B73,B77,B81,B85,B89,B93)","v":0},{"$f":"SUM(C57,C61,C65,C69,C73,C77,C81,C85,C89,C93)","v":0},{"$f":"SUM(D57,D61,D65,D69,D73,D77,D81,D85,D89,D93)","v":0},null,"TOTAL DESPESES INDIRECTES (es podran assignar al projecte subvencionable fent sevir un percentatge d’assignació) - Màxim 10% de l’import imputable a la subvenció municipal",{"$f":"SUM(G57,G61,G65,G69,G73,G77,G81,G85,G89,G93)","v":0},{"$f":"SUM(H57,H61,H65,H69,H73,H77,H81,H85,H89,H93)","v":0},{"$f":"SUM(I57,I61,I65,I69,I73,I77,I81,I85,I89,I93)","v":0},{"$f":"+IF(G97>G12*0.1,\"ALERTA: Màxim 10% de l'import imputable a la subvenció municipal\", \" \")","v":" "},{"$f":"DespesesProjecte5[[#This Row],[Import imputable a la subvenció municipal]]-G97","v":0},{"$f":"DespesesProjecte5[[#This Row],[Import de l''aportació / Cofinançament de l''organització]]-H97","v":0},{"$f":"DespesesProjecte5[[#This Row],[Import total del projecte]]-I97","v":0}]
["TOTAL DE DESPESES PREVISTES",{"$f":"SUM(B97,B56)","v":0},{"$f":"SUM(C97,C56)","v":0},{"$f":"SUM(D97,D56)","v":0},null,"TOTAL DE DESPESES PREVISTES",{"$f":"SUM(G97,G56)","v":0},{"$f":"SUM(H97,H56)","v":0},{"$f":"SUM(I97,I56)","v":0},null,{"$f":"DespesesProjecte5[[#This Row],[Import imputable a la subvenció municipal]]-G98","v":0},{"$f":"DespesesProjecte5[[#This Row],[Import de l''aportació / Cofinançament de l''organització]]-H98","v":0},{"$f":"DespesesProjecte5[[#This Row],[Import total del projecte]]-I98","v":0}]
[]
[]
["Modalitat Ba. Intercooperació de 2n i major nivell: Projectes promoguts per organitzacions de l'Economia Social i Solidària o de les finances ètiques de segon nivell i superior, que contribueixin al desplegament de l’Estratègia ESSBCN2030 de Barcelona i als objectius estratègics del PIESS 2024-2027, i tinguin per destinatàries a les seves organitzacions sòcies"]
["1.  La quantia de la subvenció atorgada no superarà el 80% de la despesa total del projecte a subvencionar. "]
["2.  L'import màxim de subvenció per a la modalitat Ba de l’àmbit temàtic Intercooperació (B) és 30.000€."]
["3.  En el cas que la sol·licitud presentada sobrepassi l’import màxim, es considerarà com a import sol·licitat el màxim de l'establert a la convocatòria."]
["4.  Es limita amb un màxim del 20% l'import de la subvenció per a despeses de personal propi assignat al projecte subvencionat (retribucions i seguretat social- règim general o autònoms). "]
["5. En el cas de lloguers d’immobles les despeses de lloguer s’imputaran a les despeses indirectes amb el límit establert per aquestes despeses indirectes."]
["6.  Són imputables en aquesta modalitat les despeses indirectes, detallades en l’apartat 13.3. de les bases reguladores; amb un màxim del 10% de l'import de la subvenció.\n"]
["7.  Quan s'hagi de fer despeses de més de 12.000 €, sense IVA, en el cas de prestacions de serveis o lliurament de béns, s'hauran d'incorporar tres pressupostos sol·licitats i argumentar el motiu de l'adjudicació en el cas de no ser la proposta més avantatjosa econòmicament."]
["8. Per les subvencions atorgades per import igual o superior a 20.000 € és necessari un informe d'auditoria per a la justificació. L'import d'aquest informe es considera despesa subvencionable, amb un límit màxim de 1.500€."]
["9. Viatges i desplaçaments imputables a les activitats del projecte subvencionable (amb un límit del 7% de la subvenció)"]
["10. En cap cas es consideraran despeses subvencionables:\n> Els impostos indirectes quan siguin susceptibles de recuperació o compensació.\n> Les despeses d'inversió, incloses les adquisicions de béns mobles.\n> Les despeses realitzades amb data anterior a l'inici del projecte i data posterior a la finalització del projecte.\n> Altres despeses que s'indiquin a la convocatòria."]
["11. La retribució de les persones contractades en el marc del projecte subvencionat no pot ser inferior al Salari Mínim Interprofessional (SMI), ni a l'estipulada al corresponent conveni o marc normatiu de referència (punt 7 de les bases 2024: requisits dels projectes)."]
["12. Els materials produïts de difusió, estudis, informes o materials didàctics utilitzats, etc. en el cas de tractar-se de despesa elegible de la subvenció, hauran de tenir llicència Creative Commons -Compartir Igual- (share a like)  i no podrà tenir la condició –Sense Obres Derivades- (no derivate Works)."]
["13. Els projectes subvencionats han de fomentar activitats d'interès públic o social, les quals han de ser gratuïtes per a les persones participants o en cap cas el preu ha de suposar un obstacle per a la seva participació, buscant altres formes d'accés per a persones amb dificultats econòmiques. En el cas que hi hagi algun tipus de lucre, haurà de revertir en les pròpies activitats subvencionades."]
["14. L'Ajuntament de Barcelona i les seves entitats municipals en cap cas subvencionaran el mateix projecte, executat durant el mateix període, per cap altre procediment de concessió que no sigui el regulat per les bases reguladores."]
["15. El/la beneficiari/ària no podrà alterar en cap cas el destí de les subvencions concedides."]

{"sheet":"Resum Pressupost","index":2,"n_rows":28,"n_cols":11,"rows_kept":28,"cut":false,"hidden":false,"merged":[[1,2,1,7],[5,0,5,1],[3,0,3,8],[17,4,18,4],[24,7,24,9],[6,9,7,9],[6,0,7,1],[6,2,7,2],[6,3,7,3],[6,4,7,4],[6,6,7,7],[6,8,7,8],[8,0,19,0],[17,1,18,1],[17,2,18,2],[17,3,18,3],[19,6,19,7]]}
[]
[null,null,"Resum pressupost modalitat Ba"]
[]
["Subvencions de l'Ajuntament de Barcelona per l'enfortiment de l'Economia Social i Solidària i per la intercooperació en l'Estratègia #ESSBCN2030 - ENFORTIM L’ESS 2024",null,null,null,null,null,null,null,null,"MODALITAT Ba"]
[]
["DESPESES PREVISTES",null,null,null,null,null,"INGRESSOS PREVISTOS"]
["Despeses directes \n(aquelles que s'identifiquen directament amb el projecte)",null,"Previsió inicial cost TOTAL","Previsió reformulada cost TOTAL","Import imputat a la subvenció ATORGADA",null,"Ingressos previstos",null,"Previsió inicial ingrés total","Previsió reformulada ingrés total"]
[]
["Ba","D1. Retribucions i seguretat social (règim general) del personal propi vinculat/da directament al projecte (màxim 20% subvenció)",{"$f":"+'Reformulació Pressupost Ba'!D21","v":0},{"$f":"+'Reformulació Pressupost Ba'!I21","v":0},{"$f":"+'Reformulació Pressupost Ba'!G21","v":0},{"$f":"+IF(D9<0,\"No s'admeten valors negatius\",\"\")","v":""},"A.","Subvenció municipal (import sol·licitat a la instància/atorgat)",{"$f":"'Reformulació Pressupost Ba'!B12","v":0},{"$f":"'Reformulació Pressupost Ba'!G12","v":0}]
[null,"D2. Treballs realitzats per professionals i empreses externes directament vinculades a l’acompanyament de processos de l’organització i amb les seves associades vinculats a les accions subvencionades",{"$f":"+'Reformulació Pressupost Ba'!D27","v":0},{"$f":"+'Reformulació Pressupost Ba'!I27","v":0},{"$f":"+'Reformulació Pressupost Ba'!G27","v":0},{"$f":"+IF(D10<0,\"No s'admeten valors negatius\",\"\")","v":""},"B.","Subvencions d'altres administracions",null,null,{"$f":"+IF(J10<0,\"No s'admeten valors negatius\",\"\")","v":""}]
[null,"D3. Lloguer de béns immobles directament vinculats al projecte subvencionable",{"$f":"+'Reformulació Pressupost Ba'!D31","v":0},{"$f":"+'Reformulació Pressupost Ba'!I31","v":0},{"$f":"+'Reformulació Pressupost Ba'!G31","v":0},{"$f":"+IF(D11<0,\"No s'admeten valors negatius\",\"\")","v":""},"C.","Subvencions d'ens privats",null,null,""]
[null,"D4. Adquisició de materials i béns consumibles íntegrament imputables al projecte subvencionable",{"$f":"+'Reformulació Pressupost Ba'!D35","v":0},{"$f":"+'Reformulació Pressupost Ba'!I35","v":0},{"$f":"+'Reformulació Pressupost Ba'!G35","v":0},{"$f":"+IF(D12<0,\"No s'admeten valors negatius\",\"\")","v":""},"D.","Recursos propis de l'organització aplicats al projecte"]
[null,"D5. Publicitat i propaganda de les activitats directament vinculades al projecte subvencionable",{"$f":"+'Reformulació Pressupost Ba'!D39","v":0},{"$f":"+'Reformulació Pressupost Ba'!I39","v":0},{"$f":"+'Reformulació Pressupost Ba'!G39","v":0},null,"E.","Taquillatge"]
[null,"D6. Viatges i desplaçaments imputables a les activitats del projecte subvencionable (amb un límit del 7% de la subvenció)",{"$f":"+'Reformulació Pressupost Ba'!D43","v":0},{"$f":"+'Reformulació Pressupost Ba'!I43","v":0},{"$f":"+'Reformulació Pressupost Ba'!G43","v":0},null,"F.","Quotes d'inscripció"]
[null,"D7. Despeses de l’informe d’auditoria (màxim 1.500€ subvenció)",{"$f":"+'Reformulació Pressupost Ba'!D47","v":0},{"$f":"+'Reformulació Pressupost Ba'!I47","v":0},{"$f":"+'Reformulació Pressupost Ba'!G47","v":0},null,"G.","Venda de Productes"]
[null,"D8. Altres despeses que de manera justificada puguin imputar-se directament al projecte subvencionable",{"$f":"+'Reformulació Pressupost Ba'!D51","v":0},{"$f":"+'Reformulació Pressupost Ba'!I51","v":0},{"$f":"+'Reformulació Pressupost Ba'!G51","v":0},null,"H","Publicitat i/o Esponsorització"]
[null,"Total Despeses Directes   ",{"$f":"SUM(C9:C16)","v":0},{"$f":"SUM(D9:D16)","v":0},{"$f":"SUM(E9:E16)","v":0},null,"I.","Altres ingressos"]
[null,"Despeses indirectes (es podran assignar al projecte fent sevir un percentatge d’assignació) ","Previsió inicial cost TOTAL","Previsió reformulada cost TOTAL","Import imputat a la subvenció ATORGADA",null,null,"Total Ingressos",{"$f":"SUM(I9:I17)","v":0},{"$f":"SUM(J9:J17)","v":0}]
[]
[null,null,null,null,null,null,"Ingressos menys despeses ",null,{"$f":"+I18-C24","v":0},{"$f":"+J18-D24","v":0}]
[]
[null,null,null,null,null,null,null,null,"% subvencionat inicialment",{"$f":"I9/C24","v":{"$error":"#DIV/0!"}}]
[null,"Total Despeses Indirectes   (Màx. 10% subv)",{"$f":"SUM(C20:C22)","v":0},{"$f":"SUM(D20:D22)","v":0},{"$f":"SUM(E20:E22)","v":0},{"$f":"+IF(D22<0,\"No s'admeten valors negatius\",\"\")","v":""}]
[null,"Total Despeses ",{"$f":"+C17+C23","v":0},{"$f":"+D17+D23","v":0},{"$f":"+E17+E23","v":0},null,null,null,"% subvencionat després de reformular",{"$f":"+J9/D24","v":{"$error":"#DIV/0!"}}]
[null,null,null,null,null,null,null,"*Aquest percentatge ha de ser igual o menor al percentatge subvencionat inicialment."]
[]
[]
[null,null,null,null,null,null,null,null,null,null,"*"]